bitfinex-derivatives/quotes_BNBF0:USTF0_20250529
["timestamp","ask_amount","ask_price","bid_price","bid_amount"]
[1748514329934,1.0481032,686.26,685.7,0.57138563]
[1748514330233,1.0481032,686.25,685.65,0.782]
[1748514330437,1.0481032,686.24,685.66,0.57141412]
[1748514330638,1.0481032,686.23,685.67,0.57141412]
[1748514330937,1.04779502,686.22,685.68,0.57141312]
[1748514331137,1.0477987,686.21,685.66,0.694]
[1748514331337,0.54508849,686.29,685.66,0.694]
[1748514331338,1.0477987,686.2,685.67,0.57145033]
[1748514331634,1.0477987,686.19,685.68,0.57145033]
[1748514331834,1.04785364,686.18,685.66,0.694]
[1748514332138,1.04785364,686.17,685.67,0.57144977]
[1748514332341,0.54508849,686.29,685.68,0.57144977]
[1748514332637,1.04790751,686.28,685.69,0.5714815]
[1748514332839,1.04790751,686.27,685.7,0.57148102]
[1748514333038,1.04790751,686.26,685.71,0.57148102]
[1748514333236,1.0479519,686.25,685.72,0.57151051]
[1748514333533,1.04792061,686.24,685.73,0.57150982]
[1748514333734,1.04792061,686.23,685.74,0.57150982]
[1748514333934,1.04792061,686.22,685.75,0.57150982]
[1748514334139,1.04797608,686.21,685.76,0.57154475]
[1748514334333,1.04797459,686.2,685.77,0.57154475]
[1748514334537,1.0479626,686.19,685.78,0.57154475]
[1748514334738,1.0479626,686.18,685.79,0.57154475]
[1748514334933,0.54508849,686.29,685.8,0.57154475]
[1748514335134,1.04799769,686.28,685.81,0.57154475]
[1748514335334,1.04806021,686.27,685.82,0.57154475]
[1748514335534,1.04806021,686.26,685.83,0.57154475]
[1748514335738,1.04806021,686.25,685.66,0.694]
[1748514335939,1.04806021,686.24,685.67,0.57158324]
[1748514336139,1.04806021,686.23,685.68,0.57158324]
[1748514336439,1.04806021,686.22,685.69,0.57158324]
[1748514336735,1.04811267,686.21,685.7,0.57162182]
[1748514336939,1.04811267,686.2,685.71,0.57162182]
[1748514337240,1.04811267,686.19,685.72,0.57162143]
[1748514337536,1.04818118,686.18,685.73,0.571667]
[1748514337836,1.04818063,686.17,685.74,0.571667]
[1748514338035,1.04818063,686.16,685.75,0.571667]
[1748514338239,1.04828157,686.15,685.76,0.57172167]
[1748514338436,1.04828157,686.14,685.77,0.57172167]
[1748514338739,1.04828157,686.13,685.78,0.57172167]
[1748514338940,1.04828157,686.12,685.79,0.57172167]
[1748514339140,1.04828157,686.11,685.8,0.57172167]
[1748514339341,1.04828157,686.1,685.66,0.694]
[1748514339543,1.04836185,686.09,685.67,0.57178509]
[1748514339837,1.04836201,686.08,685.68,0.57178509]
[1748514340142,1.04849744,686.07,685.69,0.57178509]
[1748514340440,0.54508849,686.29,685.7,0.57185902]
[1748514340637,0.54508849,686.29,685.66,0.694]
[1748514340638,1.04849776,686.28,685.71,0.57185902]
[1748514340841,1.04849776,686.28,685.66,0.694]
[1748514340842,1.04849776,686.27,685.72,0.57185902]
[1748514341044,1.04849776,686.26,685.73,0.57185902]
[1748514341244,1.04865973,686.25,685.74,0.57194615]
[1748514341439,1.0486596,686.24,685.75,0.57194615]
[1748514341639,1.04866033,686.23,685.76,0.57194615]
[1748514341845,1.04867433,686.22,685.77,0.57194677]
[1748514342046,1.04867433,686.21,685.78,0.57194677]
[1748514342239,1.04867433,686.2,685.79,0.57194677]
[1748514342445,1.04867433,686.2,685.66,0.694]
[1748514342446,1.04867433,686.19,685.8,0.57194677]
[1748514342643,1.04867433,686.18,685.81,0.57194677]
[1748514342844,1.04867433,686.17,685.82,0.57194677]
[1748514343045,1.0495469,686.16,685.83,0.57205733]
[1748514343243,1.0495469,686.15,685.84,0.57205733]
[1748514343544,1.04959849,686.14,685.85,0.57208486]
[1748514343743,1.04959849,686.13,685.86,0.57208389]
[1748514343942,1.04959849,686.12,685.66,0.694]
[1748514344143,1.04959849,686.11,685.67,0.57208389]
[1748514344342,1.04959849,686.1,685.68,0.57208389]
[1748514344545,1.04959849,686.09,685.69,0.57208389]
[1748514344743,1.04957614,686.08,685.7,0.57208389]
[1748514344947,1.04957614,686.07,685.71,0.57208389]
[1748514345142,1.04957614,686.06,685.72,0.57208389]
[1748514345347,1.04957614,686.05,685.73,0.57208389]
[1748514345549,1.04957614,686.04,685.74,0.57208389]
[1748514345746,1.04963276,686.03,685.75,0.57207448]
[1748514345950,1.04963276,686.03,685.66,0.694]
[1748514345951,1.04963276,686.02,685.76,0.57207448]
[1748514346247,1.04962127,686.01,685.66,0.694]
[1748514346450,1.04962127,686.0,685.67,0.57206948]
[1748514346649,1.04962127,685.99,685.68,0.57206948]
[1748514346848,1.04962127,685.98,685.69,0.57206948]
[1748514347050,1.04959021,685.97,685.7,0.57206948]
[1748514347250,1.04959021,685.96,685.71,0.57206948]
[1748514347547,1.04959021,685.95,685.72,0.57206948]
[1748514347848,1.04958686,685.94,685.73,0.57206948]
[1748514348051,1.04958689,685.93,685.74,0.57206829]
[1748514348254,0.29142624,686.28,685.66,0.694]
[1748514348548,1.04961256,686.27,685.67,0.57206564]
[1748514348752,0.29142624,686.28,685.66,0.694]
[1748514348951,1.04961071,686.27,685.67,0.57206587]
[1748514349153,1.04961071,686.26,685.68,0.57206587]
[1748514349355,1.04961071,686.25,685.69,0.57206587]
[1748514349555,1.04961071,686.24,685.7,0.57206587]
[1748514349754,1.04961071,686.23,685.71,0.57206587]
[1748514349949,1.04961071,686.22,685.72,0.57206373]
[1748514350154,1.04961071,686.21,685.66,0.694]
[1748514350350,1.04931598,686.2,685.67,0.57206091]
[1748514350551,1.04931598,686.19,685.68,0.57206091]
[1748514350754,1.04931598,686.18,685.69,0.57206091]
[1748514350951,1.0493124,686.17,685.7,0.57206091]
[1748514351151,1.0493124,686.16,685.71,0.57206091]
[1748514351455,1.0493124,686.16,685.69,0.66]
[1748514351456,1.04931151,686.15,685.72,0.57205991]
[1748514351651,1.04931151,686.14,685.73,0.57205991]
[1748514351853,1.04931151,686.13,685.74,0.57205991]
[1748514352151,0.29142624,686.28,685.75,0.57205991]
[1748514352152,1.04931151,686.12,685.75,0.57205991]
[1748514352356,1.04931151,686.11,685.76,0.57205991]
[1748514352656,1.04931151,686.1,685.77,0.57205991]
[1748514352852,1.04931151,686.09,685.78,0.5720608]
[1748514353152,1.04931151,686.08,685.79,0.5720608]
[1748514353356,1.04931151,686.07,685.8,0.5720608]
[1748514353553,1.04933283,686.06,685.81,0.5720655]
[1748514353852,1.04933283,686.05,685.82,0.5720655]
[1748514354054,1.04933283,686.04,685.83,0.5720655]
[1748514354257,1.04933283,686.03,685.84,0.5720655]
[1748514354455,1.04933283,686.02,685.85,0.5720655]
[1748514354752,0.29142624,686.28,685.69,0.66]
[1748514354957,1.04930484,686.27,685.7,0.57206697]
[1748514355258,1.04930484,686.27,685.69,0.66]
[1748514355259,1.04930484,686.26,685.71,0.57206697]
[1748514355457,1.04930293,686.25,685.72,0.57206923]
[1748514355755,0.29142624,686.28,685.73,0.57206923]
[1748514355756,1.04930338,686.24,685.73,0.57206923]
[1748514355958,1.04930081,686.23,685.74,0.57206845]
[1748514356152,1.04930081,686.22,685.75,0.57206845]
[1748514356358,1.04930081,686.22,685.71,0.663]
[1748514356359,1.04930081,686.21,685.76,0.57206845]
[1748514356558,1.04930081,686.2,685.77,0.57206845]
[1748514356754,1.04909975,686.19,685.78,0.57206466]
[1748514356954,1.34056846,686.18,685.71,0.663]
[1748514357159,1.04914343,686.17,685.72,0.57206883]
[1748514357353,1.0491307,686.16,685.73,0.5719936]
[1748514357557,0.29146871,686.18,685.74,0.5719936]
[1748514357859,1.0491434,686.17,685.75,0.57199436]
[1748514358153,1.0491434,686.16,685.76,0.57199436]
[1748514358358,1.0491434,686.15,685.77,0.57199436]
[1748514358555,1.04901898,686.14,685.71,0.663]
[1748514358759,1.04901898,686.13,685.72,0.57192737]
[1748514359058,1.04920213,686.12,685.73,0.57192737]
[1748514359260,0.29146871,686.18,685.71,0.663]
[1748514359558,1.04910434,686.17,685.72,0.57187046]
[1748514359756,1.04910434,686.16,685.73,0.57187046]
[1748514359955,0.29146871,686.18,685.74,0.57187046]
[1748514359956,1.04910434,686.15,685.74,0.57187046]
[1748514360156,1.04910434,686.14,685.75,0.57187046]
[1748514360456,1.04910434,686.13,685.76,0.57187046]
[1748514360659,1.04910434,686.12,685.77,0.57187046]
[1748514360858,1.04915453,686.11,685.71,0.663]
[1748514361058,1.04915453,686.1,685.72,0.57187263]
[1748514361259,1.04906432,686.09,685.73,0.57182406]
[1748514361559,1.04906432,686.08,685.74,0.57182406]
[1748514361759,1.04906432,686.07,685.75,0.57182406]
[1748514361959,1.04906432,686.06,685.76,0.57182406]
[1748514362261,1.04906432,686.05,685.77,0.57182518]
[1748514362560,1.04906432,686.04,685.71,0.663]
[1748514362762,1.04906432,686.03,685.72,0.57178535]
[1748514363060,1.04906432,686.02,685.73,0.57178535]
[1748514363361,1.04897743,686.01,685.74,0.57178959]
[1748514363563,1.04898008,686.0,685.75,0.57178959]
[1748514363759,1.04898008,685.99,685.76,0.57178959]
[1748514363962,1.04898008,685.98,685.71,0.663]
[1748514364161,1.04898008,685.97,685.72,0.57175791]
[1748514364357,1.04898008,685.96,685.73,0.57175791]
[1748514364562,1.04898008,685.95,685.74,0.57175791]
[1748514364760,1.04898008,685.94,685.75,0.57175791]
[1748514364958,1.04898008,685.93,685.76,0.57175791]
[1748514365160,1.04898008,685.92,685.71,0.663]
[1748514365360,1.04898008,685.91,685.72,0.5717289]
[1748514365665,1.04898008,685.91,685.71,0.663]
[1748514365666,1.04883445,685.9,685.71,0.663]
[1748514365861,1.04883445,685.89,685.72,0.57170193]
[1748514366066,1.04883484,685.88,685.73,0.57170366]
[1748514366261,1.04883484,685.87,685.74,0.57170366]
[1748514366561,1.04884051,685.86,685.75,0.57170366]
[1748514366764,1.04884051,685.85,685.76,0.57170366]
[1748514366961,1.04884051,685.84,685.71,0.663]
[1748514367266,1.04919603,685.83,685.72,0.57168364]
[1748514367467,1.04919603,685.82,685.73,0.57168364]
[1748514367765,1.04922651,685.81,685.74,0.57168364]
[1748514368066,1.04922651,685.8,685.75,0.57168364]
[1748514368261,1.04922651,685.79,685.76,0.57168364]
[1748514368459,0.29146871,686.18,685.71,0.663]
[1748514368662,1.04915066,686.17,685.72,0.57164377]
[1748514368865,1.04915066,686.16,685.73,0.57164377]
[1748514369066,1.04915066,686.15,685.74,0.57164377]
[1748514369265,1.04915066,686.14,685.75,0.57164377]
[1748514369467,1.05068723,686.13,685.76,0.57152535]
[1748514369768,1.05068723,686.12,685.77,0.57152535]
[1748514369965,1.05068723,686.11,685.78,0.57152535]
[1748514370163,1.0503407,686.1,685.79,0.57139395]
[1748514370364,1.0503407,686.09,685.8,0.57139395]
[1748514370663,1.0503407,686.08,685.81,0.57139395]
[1748514370863,1.0493006,686.07,685.82,0.57139395]
[1748514371065,1.04930938,686.06,685.83,0.57128038]
[1748514371268,1.04930938,686.05,685.84,0.57128038]
[1748514371569,1.04930356,686.04,685.85,0.57128038]
[1748514371764,1.04930356,686.03,685.86,0.57128038]
[1748514371968,1.04930356,686.02,685.87,0.57128038]
[1748514372164,1.04930356,686.01,685.88,0.57128038]
[1748514372369,1.04909704,686.0,685.71,0.663]
[1748514372569,1.04909704,685.99,685.72,0.57116338]
[1748514372769,1.04909704,685.98,685.73,0.57116338]
[1748514373072,0.29146871,686.18,685.71,0.663]
[1748514373369,1.04890916,686.17,685.72,0.57105372]
[1748514373566,1.04891601,686.16,685.73,0.57105108]
[1748514373869,1.04891601,686.15,685.74,0.57105108]
[1748514374066,1.04891601,686.14,685.75,0.57105108]
[1748514374269,1.04891601,686.13,685.76,0.57105108]
[1748514374470,1.04891601,686.12,685.77,0.57105108]
[1748514374670,1.04860412,686.11,685.78,0.57093783]
[1748514374971,1.04860412,686.1,685.79,0.57093783]
[1748514375170,1.04836463,686.09,685.8,0.57083864]
[1748514375370,1.04836463,686.08,685.81,0.57083864]
[1748514375569,1.0483639,686.07,685.82,0.57083864]
[1748514375767,1.0483639,686.06,685.83,0.57083864]
[1748514376071,1.04821606,686.05,685.84,0.5707541]
[1748514376269,1.04817583,686.04,685.85,0.57075579]
[1748514376567,1.04817583,686.03,685.86,0.57075514]
[1748514376766,0.29146871,686.18,685.87,0.57075514]
[1748514376970,1.04818978,686.17,685.88,0.57075514]
[1748514377173,1.04818978,686.16,685.89,0.57075514]
[1748514377373,1.04818978,686.15,685.9,0.57075514]
[1748514377573,1.04818978,686.14,685.91,0.57075514]
[1748514377771,1.04818978,686.13,685.92,0.57064213]
[1748514377974,1.04818978,686.12,685.71,0.663]
[1748514378172,1.04818978,686.11,685.72,0.57064585]
[1748514378374,0.29146871,686.18,685.71,0.663]
[1748514378573,1.04779644,686.17,685.72,0.57063256]
[1748514378774,1.04772367,686.16,685.73,0.5706018]
[1748514378973,1.04772367,686.15,685.74,0.5706018]
[1748514379173,1.04772367,686.14,685.75,0.5706018]
[1748514379372,1.04772367,686.13,685.76,0.5706018]
[1748514379575,1.04772367,686.12,685.77,0.5706018]
[1748514379775,1.04765152,686.11,685.78,0.57055523]
[1748514379975,1.04765152,686.1,685.79,0.57055523]
[1748514380176,1.04765152,686.09,685.8,0.57055523]
[1748514380375,1.04765152,686.08,685.81,0.57055585]
[1748514380676,1.04765152,686.07,685.82,0.57055585]
[1748514380971,1.04765152,686.06,685.83,0.57055585]
[1748514381176,1.04795669,686.05,685.84,0.5705106]
[1748514381474,0.29146871,686.18,685.85,0.57050822]
[1748514381675,1.04796915,686.17,685.86,0.57050822]
[1748514381872,1.04796915,686.17,685.71,0.663]
[1748514381873,1.04796915,686.16,685.87,0.57050822]
[1748514382171,1.04796915,686.15,685.88,0.57050822]
[1748514382476,1.04798193,686.14,685.89,0.57041274]
[1748514382676,1.04798193,686.14,685.71,0.663]
[1748514382677,1.04798193,686.13,685.9,0.57031254]
[1748514382976,1.04772468,686.12,685.91,0.57031254]
[1748514383276,0.25363322,686.62,685.92,0.57031254]
[1748514383277,1.04772468,686.11,685.92,0.57031254]
[1748514383478,1.04760246,686.1,685.93,0.57031254]
[1748514383671,1.04760246,686.09,685.94,0.57031254]
[1748514383872,1.04760246,686.08,685.95,0.57031254]
[1748514384070,0.25363322,686.62,685.71,0.663]
[1748514384071,1.04740618,686.07,685.96,0.57019803]
[1748514384272,1.04740618,686.06,685.97,0.57019803]
[1748514384470,1.04740618,686.05,685.98,0.57019803]
[1748514384673,1.04740618,686.04,685.99,0.57019803]
[1748514384871,1.04740618,686.61,685.71,0.663]
[1748514385076,1.04716279,686.6,685.72,0.57009161]
[1748514385273,0.25363322,686.62,685.71,0.663]
[1748514385475,1.04714138,686.61,685.72,0.57007108]
[1748514385678,1.04714138,686.6,685.73,0.57007108]
[1748514385876,1.04714138,686.6,685.52,0.685]
[1748514385877,1.04714138,686.59,685.74,0.57007108]
[1748514386177,1.04714138,686.58,685.75,0.5699918]
[1748514386371,1.04714138,686.57,685.76,0.5699918]
[1748514386571,1.04694934,686.56,685.77,0.5699918]
[1748514386877,1.04682215,686.55,685.78,0.56990075]
[1748514387080,0.54491515,686.62,685.52,0.685]
[1748514387377,1.04646624,686.61,685.53,0.56988117]
[1748514387578,1.04646624,686.61,685.52,0.685]
[1748514387579,1.04646624,686.6,685.54,0.56988117]
[1748514387777,1.04646624,686.59,685.55,0.56988117]
[1748514388079,1.04646624,686.58,685.56,0.56981816]
[1748514388279,1.04646624,686.57,685.57,0.56979837]
[1748514388578,1.04646624,686.56,685.58,0.56979837]
[1748514388778,1.04646624,686.55,685.59,0.56979837]
[1748514388982,1.04646624,686.54,685.6,0.56979837]
[1748514389283,1.04646624,686.53,685.61,0.56979837]
[1748514389477,0.54491515,686.62,685.62,0.56972126]
[1748514389478,1.04622259,686.52,685.62,0.56972126]
[1748514389782,1.04622259,686.51,685.63,0.56972126]
[1748514390080,0.54491515,686.62,685.64,0.56972126]
[1748514390081,1.04622259,686.5,685.64,0.56972126]
[1748514390280,1.04622259,686.49,685.65,0.56964988]
[1748514390478,1.04622259,686.48,685.66,0.5696049]
[1748514390676,1.04622259,686.47,685.67,0.5696049]
[1748514390879,1.04622259,686.46,685.68,0.5696049]
[1748514391078,1.04622259,686.45,685.69,0.5696049]
[1748514391281,1.04622259,686.44,685.7,0.5696049]
[1748514391481,0.54491515,686.62,685.54,0.692]
[1748514391682,1.04589759,686.61,685.55,0.56954378]
[1748514391883,1.04589759,686.6,685.56,0.56954378]
[1748514392182,1.04586204,686.59,685.57,0.56952335]
[1748514392382,1.04586204,686.59,685.54,0.692]
[1748514392383,1.04586204,686.58,685.58,0.56952335]
[1748514392579,1.04586204,686.57,685.59,0.56952335]
[1748514392779,1.04586204,686.56,685.6,0.56952335]
[1748514392980,1.04586204,686.55,685.61,0.56952335]
[1748514393179,1.04586204,686.55,685.54,0.692]
[1748514393180,1.04586204,686.54,685.62,0.56952335]
[1748514393381,1.04586204,686.53,685.63,0.56952335]
[1748514393585,1.04586204,686.52,685.64,0.56952335]
[1748514393776,1.04586204,686.51,685.65,0.56952335]
[1748514393980,1.04569018,686.5,685.66,0.56952335]
[1748514394175,1.04569018,686.49,685.67,0.56952335]
[1748514394384,1.04569018,686.48,685.68,0.56952335]
[1748514394577,1.04569018,686.47,685.69,0.56952335]
[1748514394782,1.04564031,686.46,685.7,0.56940306]
[1748514394982,1.04564031,686.45,685.71,0.56940306]
[1748514395282,1.04564031,686.44,685.72,0.56940306]
[1748514395482,1.04564031,686.43,685.73,0.56940306]
[1748514395682,1.04564031,686.42,685.74,0.56940306]
[1748514395883,1.04564031,686.41,685.75,0.56940306]
[1748514396081,1.04564031,686.4,685.76,1.13882224]
[1748514396284,1.04564031,686.39,685.77,0.56941918]
[1748514396486,1.04564031,686.38,685.78,0.56941918]
[1748514396786,1.04564031,686.37,685.79,0.56941918]
[1748514396980,1.04564031,686.36,685.8,0.56941918]
[1748514397281,1.04543284,686.35,685.81,0.56939674]
[1748514397485,1.04543284,686.34,685.82,0.56939674]
[1748514397686,1.04543284,686.33,685.83,0.56939674]
[1748514397882,1.04543284,686.32,685.84,0.56939674]
[1748514398087,1.04543284,686.31,685.85,0.56939674]
[1748514398288,1.04543139,686.3,685.86,0.56939674]
[1748514398481,1.04543139,686.29,685.87,0.56937515]
[1748514398686,1.04543717,686.28,685.88,0.56937515]
[1748514398885,1.04543717,686.27,685.89,0.56937515]
[1748514399082,1.04543717,686.27,685.54,0.692]
[1748514399083,1.04543717,686.26,685.9,0.56937515]
[1748514399288,1.04543717,686.25,685.91,0.56937515]
[1748514399482,1.04543717,686.24,685.54,0.692]
[1748514399685,1.04543717,686.23,685.55,0.56935637]
[1748514399882,1.04543717,686.22,685.56,0.56935637]
[1748514400085,1.04556822,686.21,685.57,0.56934364]
[1748514400284,1.04556716,686.2,685.58,0.56934364]
[1748514400484,1.04556287,686.19,685.59,0.56934449]
[1748514400785,1.0455724,686.18,685.6,0.56934566]
[1748514400984,0.54491515,686.62,685.54,0.692]
[1748514400985,1.0455724,686.17,685.61,0.56934566]
[1748514401286,1.04555319,686.16,685.62,0.56933438]
[1748514401485,1.04555319,686.15,685.63,0.56933438]
[1748514401685,1.04555319,686.14,685.54,0.692]
[1748514401891,1.04555571,686.13,685.55,0.56933614]
[1748514402089,1.04555568,686.12,685.56,0.56933614]
[1748514402285,1.04555568,686.12,685.54,0.692]
[1748514402286,1.04553584,686.61,685.57,0.56932523]
[1748514402589,1.33682625,686.6,685.58,0.56932523]
[1748514402792,1.04553928,686.59,685.59,0.56932682]
[1748514402991,1.04553928,686.58,685.54,0.692]
[1748514403188,1.04552808,686.57,685.55,0.56932682]
[1748514403387,1.04552808,686.57,685.54,0.692]
[1748514403388,1.04552808,686.56,685.56,0.56932682]
[1748514403585,1.33683971,686.55,685.57,0.56932682]
[1748514403789,1.33684395,686.54,685.58,0.56932682]
[1748514403990,1.33684819,686.53,685.59,0.56932682]
[1748514404290,1.33685244,686.52,685.6,0.56931539]
[1748514404491,1.33653026,686.51,685.61,0.56931539]
[1748514404689,1.3365345,686.5,685.62,0.56931539]
[1748514404888,1.33653875,686.49,685.63,0.56931539]
[1748514405089,1.04520166,686.48,685.64,0.56931539]
[1748514405390,1.04525178,686.47,685.65,0.56931619]
[1748514405685,1.04524507,686.46,685.66,0.56931567]
[1748514405891,1.04524507,686.45,685.67,0.56931567]
[1748514406091,1.04524507,686.45,685.54,0.692]
[1748514406092,1.04524507,686.44,685.68,0.56931567]
[1748514406288,1.04524507,686.43,685.69,0.56931567]
[1748514406493,1.04524507,686.42,685.7,0.56931567]
[1748514406690,1.04524507,686.41,685.71,0.56931567]
[1748514406895,1.04524507,686.4,685.72,0.56932974]
[1748514407093,1.04524507,686.39,685.73,0.56932974]
[1748514407296,1.04524507,686.38,685.74,0.56932974]
[1748514407491,1.04524507,686.37,685.75,0.56932974]
[1748514407691,1.04524507,686.36,685.76,0.56932974]
[1748514407893,1.04526697,686.35,685.77,0.56932974]
[1748514408094,1.04526697,686.34,685.78,0.56932974]
[1748514408289,1.04526697,686.33,685.79,0.56932974]
[1748514408598,1.04526845,686.32,685.8,0.56933696]
[1748514408793,1.04526845,686.31,685.81,0.56933696]
[1748514408994,1.04526845,686.3,685.82,0.56933696]
[1748514409196,1.04526845,686.29,685.83,0.56933696]
[1748514409496,1.04524524,686.28,685.84,0.56934997]
[1748514409795,1.04524524,686.27,685.85,0.56936296]
[1748514409995,0.29133709,686.49,685.86,0.56936296]
[1748514410190,1.04522979,686.48,685.87,0.56936296]
[1748514410492,1.3365808,686.47,685.88,0.56936674]
[1748514410690,1.04523523,686.46,685.89,0.56936674]
[1748514410889,1.04523523,686.45,685.9,0.56936674]
[1748514411091,1.04523523,686.44,685.91,0.56936674]
[1748514411395,1.04523523,686.43,685.92,0.56938588]
[1748514411600,1.04525348,686.42,685.54,0.692]
[1748514411791,1.04525348,686.41,685.55,0.56938478]
[1748514411993,1.04525348,686.4,685.56,0.56938478]
[1748514412191,1.04525348,686.39,685.57,0.56938478]
[1748514412394,1.04525348,686.39,685.54,0.692]
[1748514412395,0.29134557,686.47,685.54,0.692]
[1748514412593,1.04530992,686.46,685.55,0.5694077]
[1748514412797,0.29134557,686.47,685.56,0.56942243]
[1748514412991,0.29134557,686.47,685.54,0.692]
[1748514412992,1.04517653,686.46,685.57,0.56942243]
[1748514413195,1.33653059,686.45,685.58,0.56942243]
[1748514413398,1.33653484,686.44,685.59,0.56947598]
[1748514413599,1.33660948,686.43,685.6,0.56950233]
[1748514413799,1.33661373,686.42,685.61,0.56950233]
[1748514413997,1.33661797,686.41,685.62,0.56950233]
[1748514414198,1.33663412,686.4,685.63,0.56950233]
[1748514414401,1.33663412,686.4,685.57,0.56]
[1748514414402,1.33663836,686.39,685.64,0.56950233]
[1748514414598,1.04525883,686.38,685.65,0.56950233]
[1748514414803,1.33664685,686.37,685.66,0.56950233]
[1748514414997,1.3366511,686.36,685.67,0.56950233]
[1748514415201,1.04525883,686.35,685.68,0.56941426]
[1748514415404,1.04525883,686.34,685.69,0.56941426]
[1748514415604,1.04525883,686.33,685.57,0.56]
[1748514415804,1.04525883,686.32,685.58,0.56942728]
[1748514416005,1.04525883,686.31,685.59,0.56942728]
[1748514416205,1.0455392,686.3,685.6,0.56948025]
[1748514416401,1.0455392,686.29,685.61,0.56948025]
[1748514416606,1.04560067,686.28,685.57,0.56]
[1748514416902,1.04564645,686.27,685.57,0.56]
[1748514417207,1.04564645,686.26,685.58,0.56950473]
[1748514417406,1.04564645,686.25,685.59,0.56950473]
[1748514417607,1.04584107,686.24,685.6,0.56960765]
[1748514417802,1.04584107,686.23,685.61,0.56960765]
[1748514418000,1.04601967,686.22,685.62,0.56960765]
[1748514418205,1.04601967,686.21,685.63,0.56960765]
[1748514418407,1.04617635,686.2,685.64,0.56969713]
[1748514418602,1.04617635,686.19,685.65,0.56969713]
[1748514418907,1.04617635,686.18,685.66,0.56969713]
[1748514419109,1.04626594,686.17,685.67,0.56971897]
[1748514419305,1.04626594,686.16,685.68,0.56971897]
[1748514419503,1.04644988,686.15,685.69,0.56981639]
[1748514419708,1.04644988,686.14,685.7,0.56981639]
[1748514419908,1.04644988,686.13,685.71,0.56981639]
[1748514420108,1.04644988,686.12,685.72,0.56981639]
[1748514420409,1.04644988,686.11,685.73,0.56981639]
[1748514420605,1.04657174,686.1,685.74,0.56981639]
[1748514420803,0.29139227,686.36,685.75,0.56981112]
[1748514421009,1.04657103,686.35,685.76,0.56981112]
[1748514421210,1.04657103,686.34,685.77,0.56981112]
[1748514421409,1.04657103,686.33,685.78,0.56981112]
[1748514421606,1.04657103,686.32,685.79,0.56981112]
[1748514421811,1.04682683,686.31,685.8,0.56981112]
[1748514422006,1.04682683,686.3,685.81,0.56981112]
[1748514422311,1.04682683,686.29,685.82,0.56981112]
[1748514422511,0.29139227,686.36,685.57,0.56]
[1748514422707,1.04695625,686.35,685.58,0.5699443]
[1748514422911,1.04695625,686.34,685.59,0.5699443]
[1748514423108,1.04695625,686.33,685.6,0.5699443]
[1748514423418,1.04718951,686.32,685.61,0.57006211]
[1748514423610,1.04718951,686.31,685.62,0.57006211]
[1748514423909,0.29139227,686.36,685.63,0.57006211]
[1748514423910,1.04718951,686.3,685.63,0.57006211]
[1748514424111,0.29139227,686.36,685.64,0.57021292]
[1748514424112,1.04746179,686.29,685.64,0.57021292]
[1748514424306,1.04746179,686.28,685.65,0.57021292]
[1748514424506,1.04746179,686.27,685.66,0.57021292]
[1748514424704,1.04746179,686.26,685.67,0.57021292]
[1748514425017,0.29139227,686.36,685.68,0.57021292]
[1748514425206,1.04777245,686.35,685.69,0.57021292]
[1748514425410,1.04777245,686.35,685.57,0.56]
[1748514425411,1.04777245,686.34,685.7,0.57021292]
[1748514425607,1.04777245,686.33,685.71,0.57021292]
[1748514425811,1.04777245,686.32,685.72,0.57021292]
[1748514426011,1.04777245,686.32,685.57,0.56]
[1748514426012,1.04812551,686.31,685.73,0.57057616]
[1748514426213,1.04812447,686.3,685.74,0.57057616]
[1748514426414,0.29139227,686.36,685.75,0.57057616]
[1748514426415,1.04812447,686.29,685.75,0.57057616]
[1748514426614,1.04852869,686.28,685.76,0.57057616]
[1748514426915,1.04855213,686.27,685.77,0.57079896]
[1748514427216,1.04855213,686.26,685.78,0.57079896]
[1748514427515,1.04855213,686.25,685.79,0.57079896]
[1748514427809,1.04855213,686.24,685.8,0.57079896]
[1748514428014,1.04855213,686.23,685.81,0.57079896]
[1748514428214,1.04905452,686.22,685.82,0.57079896]
[1748514428412,1.04905452,686.21,685.83,0.57117345]
[1748514428613,1.04918216,686.2,685.84,0.57117345]
[1748514428808,1.04918216,686.19,685.85,0.57117345]
[1748514429013,1.04918216,686.19,685.57,0.56]
[1748514429014,1.04918216,686.18,685.86,0.57117345]
[1748514429213,1.04986829,686.17,685.87,0.57117345]
[1748514429407,0.29139227,686.36,685.88,0.57154645]
[1748514429710,1.04983708,686.35,685.89,0.57154644]
[1748514429916,1.04983708,686.34,685.9,0.57154644]
[1748514430109,1.04983708,686.33,685.91,0.57154644]
[1748514430310,1.04983708,686.32,685.92,0.57154644]
[1748514430513,1.04983708,686.31,685.93,0.57154644]
[1748514430715,1.04983708,686.3,685.94,0.57154644]
[1748514430915,1.04983708,686.29,685.95,0.57154644]
[1748514431112,1.04983708,686.28,685.57,0.56]
[1748514431309,1.04983708,686.27,685.58,0.57158907]
[1748514431513,1.04983708,686.26,685.59,0.57158907]
[1748514431713,1.04991118,686.25,685.6,0.57159305]
[1748514431914,1.04991118,686.24,685.61,0.57159305]
[1748514432110,1.04991118,686.23,685.62,0.57159305]